bitfinex-derivatives/quotes_SOLF0:USTF0_20240902
["timestamp","ask_amount","ask_price","bid_price","bid_amount"]
[1725269552151,0.05665903,129.54,129.53,3.8603]
[1725269552549,0.05665903,129.54,129.53,12.1603]
[1725269552855,3.8579,129.61,129.57,3.8588]
[1725269553648,0.05748101,129.6,129.58,0.05927765]
[1725269554958,0.05748101,129.6,129.58,3.91797765]
[1725269555558,4.1944,129.68,129.59,12.1585]
[1725269555762,4.1944,129.68,129.61,8.3]
[1725269556656,0.05311854,129.66,129.63,0.05875555]
[1725269557357,3.8567,129.65,129.63,0.05875555]
[1725269558565,20.79311854,129.66,129.63,0.05875555]
[1725269559164,3.857,129.64,129.63,0.05875555]
[1725269559365,20.74,129.66,129.55,1.4518]
[1725269559559,3.8581,129.61,129.57,3.859]
[1725269559865,20.74,129.64,129.55,1.4518]
[1725269560060,20.74,129.64,129.56,2.51225725]
[1725269560263,3.8578,129.62,129.55,1.4518]
[1725269560561,3.8578,129.62,129.57,0.05672352]
[1725269560764,0.05228452,129.6,129.57,0.05672352]
[1725269561061,0.05228452,129.6,129.58,3.8585]
[1725269562057,0.05228452,129.6,129.59,3.8585]
[1725269562456,0.05228452,129.6,129.59,8.7985]
[1725269562660,0.05228452,129.6,129.59,3.8585]
[1725269562862,0.05228452,129.6,129.59,8.7985]
[1725269563762,0.05228452,129.6,129.59,3.8585]
[1725269564267,0.05228452,129.6,129.59,8.7985]
[1725269564569,0.05228452,129.6,129.59,3.8585]
[1725269564867,0.05228452,129.6,129.59,8.7985]
[1725269565560,0.05228452,129.6,129.59,3.8585]
[1725269565762,0.05228452,129.6,129.59,8.7985]
[1725269566160,0.05228452,129.6,129.59,3.8585]
[1725269566761,0.05228452,129.6,129.59,8.7985]
[1725269572776,0.05228452,129.6,129.59,4.94]
[1725269572968,0.05228452,129.6,129.57,0.05672352]
[1725269573373,0.05228452,129.6,129.57,3.90990929]
[1725269573566,0.05228452,129.6,129.57,0.05672352]
[1725269573772,0.05228452,129.6,129.58,2.5114286]
[1725269573971,0.05228452,129.6,129.58,2.51142461]
[1725269574376,0.05228452,129.6,129.59,3.8585]
[1725269575075,0.05228452,129.6,129.59,8.7985]
[1725269578277,0.05228452,129.6,129.59,4.94]
[1725269581485,0.05228452,129.6,129.59,8.7985]
[1725269582984,0.05228452,129.6,129.59,4.94]
[1725269583390,3.91058452,129.6,129.57,0.05672352]
[1725269583592,0.05228452,129.6,129.57,0.05672352]
[1725269584994,3.8588,129.58,129.57,0.05672352]
[1725269585489,20.74,129.58,129.52,4.9]
[1725269585689,20.74,129.55,129.52,4.9]
[1725269585988,20.74,129.55,129.44,22.1967]
[1725269586193,3.8603,129.53,129.48,2.51514007]
[1725269586389,4.9,129.56,129.49,2.51514007]
[1725269586587,0.05628658,129.54,129.51,0.05096183]
[1725269587394,3.91638658,129.54,129.51,0.05096183]
[1725269587593,0.05628658,129.54,129.51,0.05096183]
[1725269587788,0.05628658,129.54,129.51,2.56561556]
[1725269588094,0.05628658,129.54,129.52,2.51465373]
[1725269588299,0.05628658,129.54,129.51,0.05096183]
[1725269588592,0.05628658,129.54,129.5,2.51441552]
[1725269588794,20.79628658,129.54,129.49,2.5146899]
[1725269589092,9.1867,129.61,129.48,3.8617]
[1725269589285,20.74,129.57,129.45,20.74]
[1725269589484,20.74,129.57,129.46,2.51275359]
[1725269589485,4.9,129.56,129.46,2.51275359]
[1725269589686,0.05681594,129.52,129.5,0.05381658]
[1725269591290,0.05681594,129.52,129.5,3.91471658]
[1725269591687,0.05681594,129.52,129.5,0.05381658]
[1725269591895,0.05681594,129.52,129.5,4.95381658]
[1725269593301,0.05681594,129.52,129.51,3.8608]
[1725269598392,0.05681594,129.52,129.5,4.95381658]
[1725269600301,0.05681594,129.52,129.51,3.8608]
[1725269600705,0.05681594,129.52,129.5,4.95381658]
[1725269601004,0.05681594,129.52,129.5,8.81491658]
[1725269601697,0.05681594,129.52,129.5,0.05381658]
[1725269606411,0.05681594,129.52,129.51,8.8008]
[1725269606905,4.94,129.59,129.51,4.94]
[1725269607105,6.4187,129.63,129.53,20.74]
[1725269607307,1.4787,129.63,129.54,3.90544253]
[1725269607503,3.85123044,129.62,129.55,24.5815792]
[1725269607702,5.2836045,129.63,129.57,3.8589]
[1725269607898,1.4787,129.63,129.57,3.8589]
[1725269608112,0.04918335,129.61,129.59,0.05710693]
[1725269610904,0.04918335,129.61,129.59,3.91540693]
[1725269611106,0.04918335,129.61,129.59,0.05710693]
[1725269611503,0.04918335,129.61,129.6,3.8582]
[1725269611706,0.04918335,129.61,129.6,5.2146]
[1725269612408,0.04918335,129.61,129.6,7.72161464]
[1725269612609,0.04918335,129.61,129.6,5.2146]
[1725269612811,0.04918335,129.61,129.6,7.72161595]
[1725269613413,0.04918335,129.61,129.6,5.2146]
[1725269621519,0.04918335,129.61,129.6,3.8582]
[1725269621719,0.04918335,129.61,129.59,8.85550693]
[1725269622218,0.04918335,129.61,129.6,3.8582]
[1725269631935,20.74,129.67,129.62,3.8573]
[1725269632832,3.8562,129.67,129.63,3.8572]
[1725269633225,0.05841884,129.66,129.63,8.8508842]
[1725269633625,0.05841884,129.66,129.64,3.8569]
[1725269634738,0.05841884,129.66,129.65,3.8567]
[1725269634930,1.4821,129.72,129.64,20.74]
[1725269635237,24.52869041,129.75,129.68,3.8556]
[1725269635830,3.78869041,129.75,129.66,20.74]
[1725269636031,20.74,129.77,129.66,20.74]
[1725269636335,0.04870103,129.73,129.7,3.90399115]
[1725269636834,0.04870103,129.73,129.71,3.8548]
[1725269638239,0.04870103,129.73,129.72,5.1]
[1725269640436,0.04870103,129.73,129.72,8.9546]
[1725269640828,3.8526,129.79,129.74,3.8538]
[1725269641231,22.0913,129.81,129.73,1.4395]
[1725269641535,20.74,129.81,129.73,1.4395]
[1725269641946,0.05676372,129.78,129.76,0.04973876]
[1725269642240,20.79559164,129.78,129.76,0.04973876]
[1725269643042,20.79559164,129.78,129.73,5.1]
[1725269643244,20.74,129.78,129.73,5.1]
[1725269643634,3.8533,129.77,129.73,5.1]
[1725269643939,20.74,129.78,129.73,5.1]
[1725269644141,3.8538,129.75,129.74,0.05486075]
[1725269644447,20.79346507,129.76,129.74,0.05486075]
[1725269644631,0.05346507,129.76,129.74,0.05486075]
[1725269645333,3.90696507,129.76,129.74,0.05486075]
[1725269645740,0.05346507,129.76,129.74,0.05486075]
[1725269646045,3.8537,129.75,129.74,0.05486075]
[1725269646243,0.05346507,129.76,129.74,0.05486075]
[1725269646647,3.90706507,129.76,129.74,0.05486075]
[1725269649050,0.05346507,129.76,129.74,0.05486075]
[1725269650549,0.05346507,129.76,129.74,3.90876075]
[1725269650948,0.05346507,129.76,129.75,3.8537]
[1725269651348,7.718,129.87,129.75,20.74]
[1725269651349,2.1005,129.87,129.75,20.74]
[1725269651549,2.1005,129.87,129.82,3.8514]
[1725269651944,3.8504,129.87,129.82,3.8514]
[1725269652141,245.74,129.93,129.82,3.8514]
[1725269652142,20.74,129.88,129.82,3.8514]
[1725269652345,0.05061569,129.86,129.83,0.04869356]
[1725269653052,20.79061569,129.86,129.83,0.04869356]
[1725269653348,0.05061569,129.86,129.83,0.04869356]
[1725269654350,3.90111569,129.86,129.83,0.04869356]
[1725269655646,0.05061569,129.86,129.83,3.89989356]
[1725269655850,0.05061569,129.86,129.83,0.04869356]
[1725269656445,0.05061569,129.86,129.84,3.8508]
[1725269657548,0.05061569,129.86,129.84,8.9508]
[1725269657850,0.05061569,129.86,129.84,3.8508]
[1725269659754,0.05061569,129.86,129.85,3.8507]
[1725269660052,0.05061569,129.86,129.85,8.9507]
[1725269660249,0.05061569,129.86,129.85,3.8507]
[1725269660444,0.05061569,129.86,129.83,0.04869356]
[1725269661054,3.90121569,129.86,129.83,0.04869356]
[1725269661650,3.8508,129.85,129.83,0.04869356]
[1725269661851,3.8508,129.85,129.75,20.74]
[1725269661852,20.74,129.85,129.75,20.74]
[1725269662149,3.8514,129.83,129.77,3.87348887]
[1725269662547,3.8514,129.83,129.79,3.8523]
[1725269662758,20.74,129.87,129.76,25.001]
[1725269662947,0.05758508,129.83,129.8,0.05924817]
[1725269664557,0.05758508,129.83,129.81,5.1]
[1725269664759,0.05758508,129.83,129.8,0.05924817]
[1725269666851,0.05758508,129.83,129.8,5.47924817]
[1725269667046,0.05758508,129.83,129.81,5.42]
[1725269676455,0.05758508,129.83,129.81,9.2719]
[1725269676867,0.05758508,129.83,129.81,5.42]
[1725269677065,0.05758508,129.83,129.8,0.05924817]
[1725269678071,3.90898508,129.83,129.8,0.05924817]
[1725269678768,0.05758508,129.83,129.8,3.91134817]
[1725269679073,0.05758508,129.83,129.8,0.05924817]
[1725269679262,0.05758508,129.83,129.8,5.47924817]
[1725269679457,0.05758508,129.83,129.81,5.42]
[1725269679668,0.05758508,129.83,129.8,0.05924817]
[1725269680570,0.05758508,129.83,129.81,5.42]
[1725269680760,0.05758508,129.83,129.8,0.05924817]
[1725269681162,0.05758508,129.83,129.81,3.8519]
[1725269681364,0.05758508,129.83,129.81,9.2719]
[1725269682566,0.05758508,129.83,129.82,3.8516]
[1725269682770,0.05758508,129.83,129.82,5.2285]
[1725269685773,0.05758508,129.83,129.8,0.05924817]
[1725269687870,0.05758508,129.83,129.8,3.91124817]
[1725269688265,0.05758508,129.83,129.8,9.33124817]
[1725269688875,0.05758508,129.83,129.8,5.47924817]
[1725269689976,0.05758508,129.83,129.8,9.33144817]
[1725269690973,0.05758508,129.83,129.81,3.8519]
[1725269694178,0.05758508,129.83,129.82,3.8516]
[1725269695179,20.74,129.9,129.84,3.851]
[1725269695683,3.91644204,129.89,129.84,3.851]
[1725269696071,3.85,129.88,129.84,3.851]
[1725269696276,3.9047963,129.88,129.85,0.05080817]
[1725269697378,3.9047963,129.88,129.85,3.90150817]
[1725269700494,0.0547963,129.88,129.85,0.05080817]
[1725269700995,0.0547963,129.88,129.85,5.55080817]
[1725269701191,0.0547963,129.88,129.86,3.8503]
[1725269701392,0.0547963,129.88,129.85,5.55080817]
[1725269701588,0.0547963,129.88,129.85,0.05080817]
[1725269701792,0.0547963,129.88,129.86,5.5]
[1725269701993,0.0547963,129.88,129.85,0.05080817]
[1725269702193,20.7947963,129.88,129.85,0.05080817]
[1725269702388,20.74,129.86,129.81,5.5]
[1725269702587,20.74,129.86,129.77,4.1929]
[1725269702791,3.8508,129.85,129.8,3.8522]
[1725269703297,7.76488757,129.85,129.8,3.8522]
[1725269703997,3.8511,129.84,129.81,0.05173303]
[1725269704198,3.90528017,129.84,129.81,0.05173303]
[1725269704795,0.05418017,129.84,129.81,20.79173303]
[1725269705190,0.05418017,129.84,129.82,1.4287]
[1725269705399,0.05418017,129.84,129.83,3.8513]
[1725269705892,0.05418017,129.84,129.83,9.3513]
[1725269706089,20.74,129.91,129.84,3.8509]
[1725269706295,20.74,129.91,129.84,5.5]
[1725269706601,3.8493,129.9,129.85,9.3505]
[1725269706797,3.8493,129.9,129.85,3.8505]
[1725269706998,3.8496,129.89,129.85,5.5]
[1725269707197,3.8496,129.89,129.82,2.9144]
[1725269707198,0.0555686,129.89,129.86,0.04924352]
[1725269709098,0.0555686,129.89,129.86,3.89964352]
[1725269710595,0.0555686,129.89,129.86,9.39964352]
[1725269710801,0.0555686,129.89,129.86,3.89964352]
[1725269710998,0.0555686,129.89,129.87,3.8501]
[1725269712806,0.0555686,129.89,129.86,0.04924352]
[1725269712807,3.8501,129.87,129.86,0.04924352]
[1725269712996,0.0555686,129.89,129.86,0.04924352]
[1725269713908,3.9052686,129.89,129.86,0.04924352]
[1725269715210,0.0555686,129.89,129.86,0.04924352]
[1725269715913,0.0555686,129.89,129.86,3.89964352]
[1725269716103,0.0555686,129.89,129.86,5.54924352]
[1725269716505,0.0555686,129.89,129.87,1.4537]
[1725269717400,0.0555686,129.89,129.87,5.3037]
[1725269721207,0.0555686,129.89,129.86,5.54924352]
[1725269721415,3.8501,129.87,129.86,0.04924352]
[1725269723807,0.0555686,129.89,129.86,0.04924352]
[1725269724408,3.9053686,129.89,129.86,0.04924352]
[1725269725110,0.0555686,129.89,129.86,0.04924352]
[1725269726304,3.8499,129.88,129.86,0.04924352]
[1725269726504,0.0555686,129.89,129.86,0.04924352]
[1725269729013,0.0555686,129.89,129.87,3.8501]
[1725269729418,0.0555686,129.89,129.86,0.04924352]
[1725269730912,0.0555686,129.89,129.86,2.54608961]
[1725269731114,0.0555686,129.89,129.87,2.49684609]
[1725269731313,0.0555686,129.89,129.86,0.04924352]
[1725269731723,20.7955686,129.89,129.86,0.04924352]
[1725269731911,20.74,129.87,129.73,154.04]
[1725269732218,20.74,129.87,129.77,4.2127]
[1725269732408,3.8507,129.86,129.8,3.8521]
[1725269732816,3.8507,129.86,129.77,4.2127]
[1725269733012,3.90575683,129.85,129.82,0.05391363]
[1725269734218,7.72969124,129.85,129.82,0.05391363]
[1725269735918,0.05495683,129.85,129.82,0.05391363]
[1725269738122,7.78775941,129.85,129.82,0.05391363]
[1725269738422,3.90575683,129.85,129.82,0.05391363]
[1725269738817,24.62034125,129.85,129.82,0.05391363]
[1725269739323,3.8513,129.83,129.82,0.05391363]
[1725269741520,3.8511,129.84,129.82,0.05391363]
[1725269742328,3.8513,129.83,129.82,0.05391363]
[1725269743321,20.74,129.83,129.77,1.4784]
[1725269743624,20.74,129.81,129.77,5.48]
[1725269743824,20.74,129.81,129.7,23.6116]
[1725269744027,20.74,129.81,129.74,2.50121137]
[1725269744221,20.74,129.81,129.71,1.4104]
[1725269744423,3.9126476,129.8,129.75,2.50121477]
[1725269744729,0.05365616,129.78,129.76,0.05167973]
[1725269745327,3.90655616,129.78,129.76,0.05167973]
[1725269745529,0.05365616,129.78,129.76,0.05167973]
[1725269745933,3.8531,129.77,129.76,0.05167973]
[1725269756831,20.74,129.77,129.69,3.8553]
[1725269757034,20.74,129.77,129.64,25.0139]
[1725269757340,24.54992754,129.77,129.65,2.50337821]
[1725269757632,24.54992754,129.77,129.66,5.5]
[1725269757931,0.05555001,129.73,129.7,0.04903505]
[1725269758127,3.8548,129.72,129.7,0.04903505]
[1725269758731,3.8549,129.71,129.7,0.04903505]
[1725269760644,3.8546,129.72,129.7,0.04903505]
[1725269761330,3.90995001,129.73,129.7,0.04903505]
[1725269762133,3.8549,129.71,129.7,0.04903505]
[1725269771444,3.8563,129.67,129.64,4.2739]
[1725269772636,3.90793156,129.67,129.64,4.2739]
[1725269772840,3.90793156,129.67,129.64,4.32763466]
[1725269773036,3.8567,129.65,129.64,0.05373466]
[1725269776650,0.05163156,129.67,129.64,0.05373466]
[1725269777038,3.95011968,129.67,129.64,0.05373466]
[1725269777244,3.8564,129.66,129.64,0.05373466]
[1725269777544,3.94163464,129.67,129.64,0.05373466]
[1725269777746,3.8564,129.66,129.64,0.05373466]
[1725269777947,0.05163156,129.67,129.64,0.05373466]
[1725269778451,3.83942853,129.67,129.64,0.05373466]
[1725269779949,3.8565,129.66,129.64,0.05373466]
[1725269782852,3.90783156,129.67,129.64,0.05373466]
[1725269783948,3.90783156,129.67,129.64,3.91063466]
[1725269784249,0.05163156,129.67,129.64,3.91063466]
[1725269784453,0.05163156,129.67,129.65,5.2544]
[1725269785958,0.05163156,129.67,129.66,3.8564]
[1725269786261,20.74,129.71,129.65,1.398]
[1725269786557,3.8552,129.7,129.67,3.8559]
[1725269787355,3.90629625,129.7,129.67,3.91483138]
[1725269787757,0.05109625,129.7,129.67,0.05893138]
[1725269787962,20.74,129.69,129.67,0.05893138]
[1725269788555,3.8558,129.68,129.67,0.05893138]
[1725269789755,3.8567,129.66,129.62,5.2081]
[1725269789954,20.74,129.67,129.62,1.3507]
[1725269790657,0.05743355,129.66,129.63,0.05013279]
[1725269791160,3.8569,129.65,129.63,0.05013279]
[1725269792158,3.857,129.64,129.63,0.05013279]
[1725269794465,0.05743355,129.66,129.63,0.05013279]
[1725269796355,3.8567,129.65,129.63,0.05013279]
[1725269797853,0.05743355,129.66,129.63,0.05013279]
[1725269798765,3.8569,129.65,129.63,0.05013279]
[1725269800256,3.857,129.64,129.63,0.05013279]
[1725269811567,3.8585,129.59,129.57,1.45]
[1725269812073,12.1588,129.58,129.52,2.7947]
[1725269812266,8.3,129.58,129.53,1.3463]
[1725269812464,0.04876529,129.57,129.54,0.04878235]
[1725269812668,3.8597,129.55,129.54,0.04878235]
[1725269812972,12.1597,129.55,129.54,0.04878235]
[1725269814069,3.8597,129.55,129.54,0.04878235]
[1725269815467,3.8595,129.56,129.54,0.04878235]
[1725269816170,3.8594,129.56,129.54,0.04878235]
[1725269816771,3.90786529,129.57,129.54,0.04878235]
[1725269824283,0.04876529,129.57,129.54,3.90868235]
[1725269826080,3.90786529,129.57,129.54,3.90868235]
[1725269826282,3.90786529,129.57,129.54,0.04878235]
[1725269826787,0.04876529,129.57,129.54,0.04878235]
[1725269827682,3.8596,129.56,129.54,0.04878235]
[1725269829588,3.8597,129.55,129.54,0.04878235]
[1725269836189,3.8594,129.56,129.54,0.04878235]
[1725269839992,12.20796529,129.57,129.54,0.04878235]
[1725269845800,3.8594,129.56,129.54,0.04878235]
[1725269848694,12.20796529,129.57,129.54,0.04878235]
[1725269848896,8.34876529,129.57,129.54,3.90868235]
[1725269849095,0.04876529,129.57,129.54,0.04878235]
[1725269849392,0.04876529,129.57,129.55,1.4648]
[1725269850200,0.04876529,129.57,129.55,5.3243]
[1725269850497,3.8585,129.59,129.55,1.4648]
[1725269850797,3.8585,129.59,129.55,2.8328]
[1725269851310,0.05097456,129.58,129.56,3.8593]
[1725269851797,8.3,129.62,129.58,3.8586]
[1725269852400,12.1579,129.62,129.58,3.8586]
[1725269852598,8.3,129.62,129.58,3.8586]
[1725269852809,0.04911024,129.61,129.59,0.05573948]
[1725269854404,0.04911024,129.61,129.59,3.91393948]
[1725269856406,9.01929263,129.67,129.59,0.05573948]
[1725269856608,8.3,129.65,129.6,1.4751]
[1725269856905,3.8571,129.64,129.6,5.3331]
[1725269857302,0.05719356,129.63,129.61,0.04974472]
[1725269859505,0.05719356,129.63,129.62,3.8576]
[1725269860418,12.1563,129.67,129.63,3.8572]
[1725269860710,8.3,129.65,129.61,1.53504472]
[1725269860905,12.14538102,129.65,129.61,6.6253]
[1725269861112,8.3,129.63,129.55,3.90291398]
[1725269861413,0.05918129,129.6,129.58,0.05844859]
[1725269861703,0.05717152,129.6,129.58,0.05757279]
[1725269861909,0.05717152,129.6,129.58,3.91607279]
[1725269865615,0.05717152,129.6,129.59,3.8585]
[1725269866812,0.05717152,129.6,129.58,0.05757279]
[1725269869307,0.05717152,129.6,129.58,3.91627279]
[1725269870013,0.05717152,129.6,129.58,0.05757279]
[1725269873120,0.05717152,129.6,129.58,3.91627279]
[1725269877721,8.3,129.59,129.58,0.05757279]
[1725269878315,12.1585,129.59,129.58,0.05757279]
[1725269880423,3.8597,129.55,129.53,5.12]
[1725269880625,3.8597,129.55,129.51,4.2125]
[1725269881016,7.7505645,129.55,129.52,2.51103283]
[1725269881421,7.80013657,129.55,129.52,2.56719764]
[1725269881619,7.80013657,129.55,129.52,0.05616481]
[1725269882117,3.86,129.54,129.52,0.05616481]
[1725269885525,3.8603,129.53,129.52,0.05616481]
[1725269885922,3.8601,129.54,129.52,0.05616481]
[1725269891041,3.94043657,129.55,129.52,3.91656481]
[1725269892237,7.80023657,129.55,129.52,0.05616481]
[1725269892538,3.94043657,129.55,129.52,0.05616481]
[1725269894344,3.86,129.54,129.52,0.05616481]
[1725269900850,7.80023657,129.55,129.52,0.05616481]
[1725269903350,0.04957207,129.55,129.52,0.05616481]
[1725269904150,0.04957207,129.55,129.52,3.91656481]
[1725269905159,0.04957207,129.55,129.53,3.8602]
[1725269906546,3.84019972,129.55,129.52,3.91656481]
[1725269908951,7.69999972,129.55,129.52,3.91656481]
[1725269909156,7.69999972,129.55,129.52,0.05616481]
[1725269910044,0.04957207,129.55,129.53,3.8601]
[1725269914955,0.04957207,129.55,129.54,3.86]
[1725269917963,0.04957207,129.55,129.53,3.8601]
[1725269920462,3.90937207,129.55,129.52,5.11616481]
[1725269920663,0.04957207,129.55,129.52,5.11616481]
[1725269922361,0.04957207,129.55,129.53,3.8602]
[1725269924065,12.16,129.54,129.52,0.05616481]
[1725269924365,3.89030415,129.53,129.52,0.05616481]
[1725269925567,12.16,129.54,129.52,0.05616481]
[1725269925964,3.80529607,129.53,129.52,0.05616481]
[1725269926463,12.16,129.54,129.52,0.05616481]
[1725269926667,3.93962788,129.53,129.52,0.05616481]
[1725269926863,12.16,129.54,129.52,0.05616481]
[1725269927576,3.91067706,129.53,129.52,0.05616481]
[1725269928773,12.16,129.54,129.52,0.05616481]
[1725269928973,3.95430568,129.53,129.52,0.05616481]
[1725269933477,7.81460568,129.53,129.52,0.05616481]
[1725269933772,3.8603,129.53,129.52,0.05616481]
[1725269934176,7.70805727,129.53,129.52,0.05616481]
[1725269937263,7.70805727,129.53,129.52,2.56806276]
[1725269939189,7.70805727,129.53,129.52,2.56809897]
[1725269939372,7.70805727,129.53,129.52,0.05616481]
[1725269940674,7.70805727,129.53,129.52,2.56814518]
[1725269940870,7.70805727,129.53,129.52,0.05616481]
[1725269941585,7.70805727,129.53,129.52,2.56816422]
[1725269941791,7.70805727,129.53,129.52,0.05616481]
[1725269942083,7.70805727,129.53,129.52,2.56816422]
[1725269942475,0.04957207,129.55,129.52,2.56816422]
[1725269942682,0.04957207,129.55,129.52,0.05616481]
[1725269942880,0.04957207,129.55,129.53,10.81189647]
[1725269943078,0.04957207,129.55,129.54,2.51189647]
[1725269947787,0.04957207,129.55,129.54,6.37189647]
[1725269948181,3.87007294,129.62,129.54,2.51189647]
[1725269948384,8.3,129.62,129.55,2.51189647]
[1725269948686,3.8584,129.6,129.56,6.37119647]
[1725269948884,3.8584,129.6,129.57,2.51189647]
[1725269949090,3.8584,129.6,129.58,2.51189647]
[1725269949287,3.90905731,129.6,129.57,0.05849665]
[1725269949482,3.90905731,129.6,129.58,2.5099617]
[1725269949684,3.90905731,129.6,129.57,0.05849665]
[1725269949983,3.90905731,129.6,129.58,2.50996038]
[1725269950176,3.90905731,129.6,129.57,0.05849665]
[1725269951191,3.90905731,129.6,129.57,3.91749665]
[1725269952394,0.05065731,129.6,129.58,3.8587]
[1725269952591,0.05065731,129.6,129.57,0.05849665]
[1725269952788,0.05065731,129.6,129.58,2.50969459]
[1725269952985,0.05065731,129.6,129.58,3.8585]
[1725269953992,0.05065731,129.6,129.57,0.05849665]
[1725269954199,8.3,129.59,129.57,0.05849665]
[1725269954390,8.3,129.58,129.57,0.05849665]
[1725269954585,12.1588,129.58,129.57,0.05849665]
[1725269961794,3.8588,129.58,129.57,0.05849665]
[1725269961989,12.1588,129.58,129.57,0.05849665]
[1725269973503,3.8588,129.58,129.57,0.05849665]
[1725269973696,12.1588,129.58,129.57,0.05849665]
[1725269975198,3.8588,129.58,129.57,0.05849665]
[1725269978705,12.1588,129.58,129.57,0.05849665]
[1725269982409,8.3,129.58,129.53,1.3657]
[1725269982600,8.3,129.55,129.53,1.3657]
[1725269982797,12.11551524,129.55,129.53,1.3657]
[1725269983405,12.16974972,129.55,129.53,1.3657]
[1725269983706,12.16974972,129.55,129.53,1.41889044]
[1725269984308,16.02954972,129.55,129.53,1.41889044]
[1725269985707,3.86,129.54,129.53,1.41889044]
[1725269985905,3.86,129.54,129.53,3.93053088]
[1725269987407,3.86,129.54,129.53,2.56483088]
[1725269987808,3.86,129.54,129.53,0.05319044]
[1725269996908,7.72954972,129.55,129.53,0.05319044]
[1725269997108,3.86974972,129.55,129.53,0.05319044]
[1725269998510,7.72944972,129.55,129.53,0.05319044]
[1725269998914,3.86974972,129.55,129.53,0.05319044]
[1725269999316,0.05423448,129.55,129.53,0.05319044]
[1725269999720,0.05423448,129.55,129.54,2.51126103]
[1725269999914,0.05423448,129.55,129.54,3.91716103]
[1725270000108,0.05423448,129.55,129.54,7.77716103]
[1725270000516,12.1588,129.58,129.54,7.77708896]
[1725270000715,12.1588,129.58,129.54,5.2659]
[1725270000908,3.8585,129.59,129.55,6.370272]
[1725270001108,3.8585,129.59,129.55,3.8596]
[1725270001413,8.3,129.58,129.54,1.4059]
[1725270001610,0.05124058,129.57,129.55,0.05787964]
[1725270001814,3.96101713,129.57,129.55,0.05787964]
[1725270002012,3.8594,129.56,129.55,0.05787964]
[1725270002817,3.96101713,129.57,129.55,0.05787964]
[1725270003117,0.05124058,129.57,129.55,0.05787964]
[1725270003322,3.99536758,129.57,129.55,0.05787964]
[1725270004917,0.05124058,129.57,129.55,0.05787964]
[1725270008031,15.95694743,129.58,129.55,0.05787964]
[1725270009026,16.01052867,129.58,129.55,0.05787964]
[1725270013231,0.05358124,129.58,129.55,0.05787964]
[1725270013537,0.05358124,129.58,129.56,2.51053432]
[1725270013839,0.05358124,129.58,129.55,0.05787964]
[1725270014031,0.05358124,129.58,129.56,2.51053446]
[1725270014229,0.05358124,129.58,129.57,2.51032228]
[1725270014929,0.05358124,129.58,129.57,6.36942228]
[1725270015135,8.3,129.6,129.57,6.36942228]
[1725270015334,8.3,129.6,129.57,3.8591]
[1725270015734,12.19549243,129.6,129.57,3.8591]
[1725270016331,12.24705823,129.6,129.57,3.8591]
[1725270018644,8.3515658,129.6,129.57,3.8591]
[1725270018835,3.89017519,129.59,129.56,3.8591]
[1725270019139,8.3,129.57,129.55,0.05787964]
[1725270019541,4.92,129.59,129.55,0.05787964]
[1725270019736,8.35168011,129.57,129.55,0.05787964]
[1725270020244,12.21088011,129.57,129.55,0.05787964]
[1725270023351,3.8594,129.56,129.55,0.05787964]
[1725270026052,0.05168011,129.57,129.55,0.05787964]
[1725270027346,0.05168011,129.57,129.56,2.51038725]
[1725270028151,0.05168011,129.57,129.56,6.36978725]
[1725270028848,0.05168011,129.57,129.56,6.36979473]
[1725270029346,0.05168011,129.57,129.56,3.8594]
[1725270029550,0.05168011,129.57,129.56,6.3698061]
[1725270030147,0.05168011,129.57,129.56,2.5104061]
[1725270033752,228.91251219,129.69,129.56,2.5104061]
[1725270033949,8.3,129.63,129.57,2.5104061]
[1725270034254,3.8578,129.62,129.57,3.8589]
[1725270034455,3.78095998,129.61,129.58,2.50996041]
[1725270034655,3.78095998,129.61,129.58,0.05383878]
[1725270035856,3.78095998,129.61,129.58,3.91263878]
[1725270036162,8.3,129.61,129.58,0.05383878]
[1725270036351,3.82495604,129.6,129.58,0.05383878]
[1725270036551,7.68315604,129.6,129.58,0.05383878]
[1725270037360,3.82495604,129.6,129.58,0.05383878]
[1725270039257,8.3,129.61,129.58,3.91253878]
[1725270039860,12.13748746,129.61,129.58,3.91253878]
[1725270040759,8.3,129.6,129.53,1.4598]
[1725270040958,8.3,129.57,129.54,2.5099868]
[1725270041160,8.3,129.57,129.51,4.9]
[1725270041461,8.3,129.57,129.52,2.51134634]
[1725270041655,8.3,129.57,129.53,2.51134634]
[1725270041856,0.05419519,129.56,129.54,0.05174286]